bitfinex/quotes_ETHUSD_20250724
["timestamp","ask_amount","ask_price","bid_price","bid_amount"]
[1753352251096,12.99731461,3635.2,3635.1,1e-08]
[1753352251425,6.95287338,3635.2,3635.1,1e-08]
[1753352252033,7.39617338,3635.2,3635.1,1e-08]
[1753352252332,6.95287338,3635.2,3635.1,1e-08]
[1753352253040,10.88266326,3635.2,3635.1,1e-08]
[1753352253332,10.9240312,3635.2,3635.1,0.44080001]
[1753352254030,6.4810312,3635.2,3635.1,1e-08]
[1753352254200,11.9847312,3635.2,3635.1,1e-08]
[1753352254400,12.49750012,3635.2,3635.1,1e-08]
[1753352254642,12.94080012,3635.2,3635.1,1e-08]
[1753352255229,12.94075227,3635.2,3635.1,1e-08]
[1753352257441,13.67883927,3635.2,3635.1,1e-08]
[1753352257630,12.94067697,3635.2,3635.1,1e-08]
[1753352258243,13.67883093,3635.2,3635.1,1e-08]
[1753352258445,13.67883093,3635.2,3633.7,0.4408]
[1753352258446,3.0,3634.1,3632.0,0.55]
[1753352258748,0.6483,3634.5,3632.9,2.75256487]
[1753352258749,3.0,3633.6,3632.9,2.75256487]
[1753352258914,4.44,3633.5,3632.9,2.75256487]
[1753352259254,7.19217643,3633.5,3632.8,2.75267282]
[1753352259540,2.75217643,3633.5,3632.9,0.27526728]
[1753352260046,2.75225595,3633.4,3632.9,0.27526728]
[1753352260210,7.19126518,3633.4,3632.9,0.27526728]
[1753352260409,7.19126518,3633.4,3633.0,0.4328]
[1753352260748,2.75247034,3633.1,3633.0,0.4328]
[1753352260904,3.0,3633.0,3632.0,2.75323782]
[1753352261230,3.0,3632.8,3632.2,4.1577756]
[1753352261438,3.0,3632.8,3632.3,1.2581]
[1753352261642,3.0,3632.8,3632.4,1.3229]
[1753352261815,3.0,3632.9,3632.4,1.7557]
[1753352262003,3.0,3632.9,3632.5,0.4328]
[1753352262204,3.0,3632.9,3632.5,1.02413647]
[1753352262409,3.0,3632.9,3632.5,0.59133647]
[1753352262608,3.0,3632.9,3632.6,0.4328]
[1753352262834,3.0,3632.9,3632.7,0.4328]
[1753352263029,3.0,3632.9,3632.8,0.4328]
[1753352263431,3.0,3632.9,3632.8,1.7702]
[1753352263813,4.437,3633.0,3632.8,0.94423833]
[1753352264019,4.437,3633.0,3632.9,1.3515]
[1753352264243,4.5746,3633.0,3632.9,1.7843]
[1753352265911,0.1376,3633.0,3632.9,1.7843]
[1753352266108,3.0,3632.8,3632.7,1.2996]
[1753352266745,0.1376,3633.0,3632.7,2.15150816]
[1753352266949,3.0,3633.0,3632.9,1.3521]
[1753352267243,4.436,3633.3,3633.1,1.3521]
[1753352267445,3.1376,3633.3,3633.2,0.4328]
[1753352267740,5.889971,3633.3,3633.2,0.4328]
[1753352268746,2.75247645,3633.1,3632.9,0.4328]
[1753352268933,5.75242402,3633.2,3632.9,0.4328]
[1753352269138,2.75273034,3632.8,3632.5,0.001]
[1753352269317,3.0,3632.8,3632.5,0.4338]
[1753352269513,3.0,3632.7,3632.5,0.001]
[1753352269714,3.0,3632.7,3632.6,0.4328]
[1753352270564,5.75277341,3632.7,3632.5,0.001]
[1753352270726,5.75277341,3632.7,3632.5,0.4338]
[1753352270926,5.75277341,3632.7,3632.6,0.4328]
[1753352270927,3.0,3632.7,3632.6,0.4328]
[1753352271330,5.75277341,3632.7,3632.6,0.4328]
[1753352272153,5.75284919,3632.6,3632.5,0.001]
[1753352272660,10.18684919,3632.6,3632.5,0.001]
[1753352273237,10.62614919,3632.6,3632.5,0.001]
[1753352273647,10.62514919,3632.6,3632.5,0.001]
[1753352273863,10.18584919,3632.6,3632.5,0.001]
[1753352274171,10.62514919,3632.6,3632.5,0.001]
[1753352274355,10.18584919,3632.6,3632.5,0.001]
[1753352274943,5.75284919,3632.6,3632.5,0.001]
[1753352275158,10.18484919,3632.6,3632.5,0.4338]
[1753352275362,3.0,3632.6,3632.5,0.4338]
[1753352275673,3.00122332,3632.6,3632.5,0.4338]
[1753352276035,3.00122332,3632.6,3632.5,0.3838]
[1753352276862,3.00122332,3632.6,3632.4,1.3235]
[1753352276863,3.0,3632.5,3632.4,1.3235]
[1753352277064,3.00122332,3632.6,3632.4,1.3235]
[1753352277241,3.00122332,3632.6,3631.9,1.2744]
[1753352277242,4.46541156,3632.5,3631.9,1.2744]
[1753352277441,3.0,3632.4,3631.9,1.2744]
[1753352277657,2.75325171,3632.1,3631.9,1.2744]
[1753352277858,3.0,3632.0,3631.9,1.2744]
[1753352278056,5.75330396,3632.0,3631.9,1.2744]
[1753352278263,2.75330396,3632.0,3631.9,1.2744]
[1753352278632,2.7532317,3632.1,3631.9,1.2744]
[1753352278867,3.0,3632.2,3631.9,1.7072]
[1753352279072,2.75323127,3632.1,3631.9,1.7072]
[1753352279271,3.1376,3632.2,3631.9,1.7072]
[1753352279455,3.1376,3632.2,3632.0,0.4328]
[1753352279863,0.1376,3632.2,3632.1,0.4328]
[1753352280471,3.1376,3632.2,3632.1,0.4328]
[1753352281473,3.0,3632.2,3632.1,0.60362]
[1753352281683,0.1376,3632.4,3632.1,3.18602816]
[1753352281976,3.0,3632.4,3632.2,0.4328]
[1753352282138,3.0,3632.4,3632.3,0.4328]
[1753352282541,5.89053898,3632.5,3632.3,0.4328]
[1753352282738,2.75300077,3632.4,3632.3,0.4328]
[1753352282974,3.72936102,3632.5,3632.0,1.3398]
[1753352283140,0.1376,3632.2,3632.1,0.4328]
[1753352283562,2.89075235,3632.2,3632.1,0.4328]
[1753352283871,3.0,3632.1,3632.0,1.3398]
[1753352284077,0.1376,3632.2,3632.0,1.3398]
[1753352284377,0.1376,3632.2,3632.1,0.4328]
[1753352285398,0.1376,3632.2,3632.0,1.3398]
[1753352285599,2.75322816,3632.1,3632.0,1.3398]
[1753352285886,2.75322816,3632.1,3631.8,0.001]
[1753352286117,0.72963972,3632.2,3631.8,0.001]
[1753352286275,2.75337977,3631.9,3631.8,0.001]
[1753352286445,2.92539701,3631.9,3631.8,0.001]
[1753352286758,8.30603673,3631.9,3631.8,0.001]
[1753352287085,8.27285767,3631.9,3631.8,0.001]
[1753352287387,8.78751761,3631.9,3631.8,0.001]
[1753352288543,9.52560158,3631.9,3631.8,0.001]
[1753352288777,8.78751761,3631.9,3631.8,0.001]
[1753352289711,12.41054874,3631.9,3631.8,0.001]
[1753352289901,11.42391761,3631.9,3631.8,0.001]
[1753352290280,11.16654873,3631.9,3631.8,0.001]
[1753352291312,12.48724873,3631.9,3631.8,0.001]
[1753352291606,13.03732216,3631.9,3631.8,1e-08]
[1753352292577,12.48632216,3631.9,3631.8,1e-08]
[1753352292808,13.03632216,3631.9,3631.8,1e-08]
[1753352293111,8.06232216,3631.9,3631.8,1e-08]
[1753352293411,12.74306265,3631.9,3631.8,1e-08]
[1753352293614,13.29306265,3631.9,3631.8,1e-08]
[1753352294277,11.71562216,3631.9,3631.8,1e-08]
[1753352294478,8.16462216,3631.9,3631.8,1e-08]
[1753352294928,11.16462216,3631.9,3631.8,1e-08]
[1753352295276,13.06642216,3631.9,3631.8,1e-08]
[1753352296416,12.8091311,3631.9,3631.8,1e-08]
[1753352296730,13.06596506,3631.9,3631.8,1e-08]
[1753352298046,13.32279209,3631.9,3631.8,1e-08]
[1753352298743,14.30942322,3631.9,3631.8,1e-08]
[1753352299535,13.32279209,3631.9,3631.8,1e-08]
[1753352299725,14.80420181,3631.9,3631.8,1e-08]
[1753352300050,13.32279209,3631.9,3631.8,1e-08]
[1753352300246,14.80373196,3631.9,3631.8,1e-08]
[1753352301911,14.80373196,3631.9,3630.2,0.1376]
[1753352301912,0.6469,3631.8,3630.2,0.1376]
[1753352302244,0.6469,3630.0,3629.1,0.04]
[1753352302408,3.0,3629.8,3629.1,0.04]
[1753352302608,3.0,3629.6,3629.2,1.3113]
[1753352302814,0.00123149,3630.4,3629.2,1.3113]
[1753352303037,0.7403893,3629.8,3629.2,1.3113]
[1753352303343,3.0,3629.6,3629.2,1.3113]
[1753352303509,3.0,3629.4,3629.2,1.3113]
[1753352303913,0.00123149,3629.3,3629.2,1.3113]
[1753352304126,0.00123149,3629.3,3629.2,4.06672819]
[1753352305040,0.00123149,3629.3,3629.2,4.75295867]
[1753352305242,3.00123149,3629.3,3629.2,4.75295867]
[1753352305441,3.00123149,3629.3,3629.2,4.06672819]
[1753352305442,0.00123149,3629.3,3629.2,4.06672819]
[1753352306650,0.00123149,3629.3,3629.2,4.05892819]
[1753352308649,0.00123149,3629.3,3629.2,1.3035]
[1753352308829,0.00123149,3629.3,3629.2,4.05892819]
[1753352310227,0.00123149,3629.3,3629.2,1.3035]
[1753352310620,0.00123149,3629.3,3629.2,4.05892819]
[1753352312228,0.00123149,3629.3,3629.2,4.74447869]
[1753352312630,0.00123149,3629.3,3629.2,2.75542819]
[1753352312952,0.00123149,3629.3,3629.1,0.1786]
[1753352313152,0.00123149,3629.3,3629.2,2.75542819]
[1753352315854,0.00123149,3629.3,3629.2,4.03092819]
[1753352320141,0.00123149,3629.3,3629.1,0.041]
[1753352320665,0.00123149,3629.3,3629.2,1.2453]
[1753352322157,5.75658376,3629.3,3629.2,4.42]
[1753352322328,3.00123149,3629.3,3629.2,4.42]
[1753352322947,3.00123149,3629.3,3629.1,0.041]
[1753352323147,3.00123149,3629.3,3629.2,4.42]
[1753352323655,0.00123149,3629.3,3629.2,4.42]
[1753352324157,0.00123149,3629.3,3629.2,7.17542819]
[1753352324358,0.00123149,3629.3,3629.2,8.29911238]
[1753352324730,0.00123149,3629.3,3629.2,9.62151238]
[1753352326573,0.00123149,3629.3,3629.2,6.86608419]
[1753352326783,0.00123149,3629.3,3629.2,1.3224]
[1753352326958,3.00123149,3629.3,3629.1,0.041]
[1753352327162,5.75542819,3629.2,3629.1,0.041]
[1753352327647,5.75666269,3629.2,3629.1,0.041]
[1753352327848,5.75666269,3629.2,3629.1,4.46]
[1753352328678,5.75666269,3629.2,3629.1,0.041]
[1753352328884,2.75666269,3629.2,3629.1,4.46]
[1753352329787,4.04046269,3629.2,3629.1,0.041]
[1753352330148,4.21250554,3629.2,3629.1,0.041]
[1753352330791,4.80519704,3629.2,3629.1,0.041]
[1753352331685,3.48695419,3629.2,3629.1,0.041]
[1753352331867,2.89426269,3629.2,3629.1,0.041]
[1753352335458,3.48695419,3629.2,3629.1,0.041]
[1753352335660,2.89426269,3629.2,3629.1,0.041]
[1753352337174,0.0012345,3629.2,3629.1,0.041]
[1753352337663,5.75666269,3629.2,3629.1,0.041]
[1753352337859,6.34937988,3629.2,3629.1,0.041]
[1753352339697,5.75666269,3629.2,3629.1,0.041]
[1753352341581,6.34939446,3629.2,3629.1,0.041]
[1753352341984,5.75666269,3629.2,3629.1,0.041]
[1753352342385,6.34940071,3629.2,3629.1,0.041]
[1753352344032,10.76640071,3629.2,3629.1,0.041]
[1753352352422,12.55110071,3629.2,3629.1,0.041]
[1753352352923,13.29149001,3629.2,3629.1,0.041]
[1753352354422,13.54929944,3629.2,3629.1,0.041]
[1753352354618,13.70398542,3629.2,3629.1,0.041]
[1753352355095,2.75618764,3628.2,3628.1,0.04]
[1753352355416,2.75612036,3628.3,3628.1,0.04]
[1753352355615,2.89378764,3628.2,3628.1,0.04]
[1753352356332,5.89378764,3628.2,3628.1,0.04]
[1753352357127,11.36729426,3628.2,3628.1,0.04]
[1753352357418,5.89378764,3628.2,3628.1,0.04]
[1753352357617,3.1376,3628.2,3628.1,0.04]
[1753352358422,3.13883315,3628.2,3628.1,0.04]
[1753352359288,0.00123315,3628.2,3628.1,2.7962636]
[1753352359494,0.00123315,3628.2,3628.1,4.97272502]
[1753352359988,0.00123315,3628.2,3628.1,0.04]
[1753352360195,9.29412689,3628.2,3628.1,0.04]
[1753352360396,12.01586219,3628.2,3628.1,0.04]
[1753352362329,18.03936881,3628.2,3628.1,0.04]
[1753352362702,17.48936881,3628.2,3628.1,0.04]
[1753352363217,16.89532741,3628.2,3628.1,0.04]
[1753352364232,16.89409426,3628.2,3628.1,0.04]
[1753352364797,7.00658764,3628.2,3628.1,0.04]
[1753352364996,5.75618764,3628.2,3628.1,0.04]
[1753352365327,3.0,3628.2,3628.1,1.3144]
[1753352365535,0.00123375,3628.2,3628.1,4.0706636]
[1753352365733,0.00123375,3628.2,3628.1,4.75336491]
[1753352367452,3.0,3629.1,3628.8,1.3227]
[1753352367770,6.57317673,3629.8,3628.8,1.3227]
[1753352367771,4.412,3629.5,3628.8,1.3227]
[1753352367914,3.0,3629.4,3628.9,2.75562902]
[1753352368096,3.0,3629.4,3628.8,1.3227]
[1753352368411,3.59371807,3629.4,3628.8,4.07840924]
[1753352368933,3.59371807,3629.4,3628.8,2.00612884]
[1753352369131,3.59371807,3629.4,3628.9,2.75560955]
[1753352369296,3.59371807,3629.4,3629.0,2.75557216]
[1753352369497,3.59371807,3629.4,3629.2,1.2533]
[1753352371202,6.34899873,3629.4,3629.2,1.2533]
[1753352371402,6.48659873,3629.4,3629.2,1.2533]
[1753352371898,3.73131807,3629.4,3629.2,1.2533]
[1753352372098,6.4865997,3629.4,3629.2,1.2533]
[1753352372626,0.59371807,3629.4,3629.2,1.2533]
[1753352372828,3.0,3629.5,3629.2,4.00869658]
[1753352373032,3.59371807,3629.5,3629.2,1.2533]
[1753352374199,1.09967011,3629.8,3629.4,2.75524499]
[1753352374200,1.84082453,3629.8,3629.4,2.75524499]
[1753352374421,1.84082453,3629.8,3629.5,1.2768]
[1753352374621,1.84082453,3629.8,3629.7,2.75504862]
[1753352374809,1.09967011,3629.8,3629.7,1.2768]
[1753352375009,0.74315442,3630.1,3629.7,1.2768]
[1753352375238,0.74115442,3630.0,3629.7,1.2768]
[1753352375437,3.74315442,3630.1,3629.7,1.2768]
[1753352375940,0.74315442,3630.1,3629.7,1.2768]
[1753352376141,0.74315442,3630.1,3629.8,2.75492346]
[1753352376431,0.002,3630.1,3629.7,1.41824]
[1753352376820,0.002,3630.1,3629.7,4.17328714]
[1753352377133,0.002,3630.1,3629.8,2.75497098]
[1753352377337,0.002,3630.1,3629.7,1.41824]
[1753352377521,2.75677351,3630.1,3629.7,0.14144]
[1753352377723,0.002,3630.1,3629.6,2.89272029]
[1753352377903,3.002,3630.1,3629.6,2.89272029]
[1753352378103,0.002,3630.1,3629.7,2.75504732]
[1753352378423,0.002,3630.1,3629.8,3.9903294]
[1753352378803,0.002,3630.1,3629.8,1.2354]
[1753352379007,0.002,3630.1,3629.8,4.66061622]
[1753352379418,0.002,3630.1,3630.0,0.1376]
[1753352383157,0.002,3630.1,3630.0,2.89242093]
[1753352383361,0.002,3630.1,3630.0,0.1376]
[1753352387744,0.002,3630.1,3629.3,4.409]
[1753352387745,3.0,3630.0,3629.5,4.405]
[1753352387906,3.0,3629.8,3629.7,0.1376]
[1753352388110,2.75504862,3629.7,3629.3,1.1447]
[1753352388325,5.75515097,3629.6,3629.2,0.1376]
[1753352388736,2.75699047,3629.5,3629.2,0.1376]
[1753352388942,0.00178867,3629.5,3629.0,1.1371]
[1753352389116,3.0,3629.3,3629.0,1.2747]
[1753352389736,3.00178867,3629.4,3629.0,1.2747]
[1753352390043,3.00178867,3629.4,3629.3,2.75535227]
[1753352390044,0.00178867,3629.4,3629.3,2.75535227]
[1753352390624,0.00178867,3629.4,3629.2,7.29700255]
[1753352390819,0.00178867,3629.4,3629.3,2.75535227]
[1753352391615,0.00178867,3629.4,3629.2,7.29700622]
[1753352391817,0.00178867,3629.4,3629.2,2.89300622]
[1753352392018,0.00178867,3629.4,3629.2,7.29700622]
[1753352392219,0.00178867,3629.4,3629.3,2.75535227]
[1753352392929,0.00178867,3629.4,3629.2,4.5416]
[1753352393118,0.00178867,3629.4,3629.2,0.1376]
[1753352393454,0.00178867,3629.4,3629.1,4.403]
[1753352397558,0.00178867,3629.4,3629.1,7.1584704]
[1753352397765,3.0,3629.3,3629.1,0.001]
[1753352397945,0.00178867,3629.4,3629.1,0.001]
[1753352398252,3.00178867,3629.4,3629.1,0.001]
[1753352398558,0.00178867,3629.4,3629.1,0.001]
[1753352398747,0.00178867,3629.4,3629.1,2.75650219]
[1753352398946,0.00178867,3629.4,3629.1,7.15850219]
[1753352399144,0.00178867,3629.4,3629.1,4.403]
[1753352400248,0.00178867,3629.4,3629.1,0.001]
[1753352400558,3.00178867,3629.4,3629.1,0.001]
[1753352401660,0.00178867,3629.4,3629.1,0.001]
[1753352402837,0.00178867,3629.4,3629.1,2.75650363]
[1753352403037,0.00178867,3629.4,3629.1,0.001]
[1753352403618,0.00178867,3629.4,3629.2,1.1535]
[1753352403864,0.00178867,3629.4,3629.3,7.29295227]
[1753352404062,0.00178867,3629.4,3629.3,4.5376]
[1753352404363,0.00178867,3629.4,3629.3,7.29295227]
[1753352405240,0.00178867,3629.4,3629.3,8.46565227]
[1753352405473,0.00178867,3629.4,3629.3,10.60962385]
[1753352406276,0.002,3630.1,3629.3,10.60962385]
[1753352406277,0.002,3630.1,3630.0,3.82402093]
[1753352406444,0.002,3630.1,3630.0,8.22302093]
[1753352406643,0.002,3630.1,3630.0,8.36062093]
[1753352408341,0.002,3630.1,3630.0,13.83412755]
[1753352408640,0.002,3630.1,3630.0,15.51375745]
[1753352408958,0.002,3630.2,3630.1,3.87644504]
[1753352409161,0.00098377,3630.5,3630.4,2.7545174]
[1753352409377,0.00098377,3630.5,3630.4,8.2742174]
[1753352409666,0.00098377,3630.5,3630.4,8.4118174]
[1753352409873,0.00098377,3630.5,3630.4,9.80393422]
[1753352414145,0.00098377,3630.5,3630.4,10.35393422]
[1753352416346,0.042,3630.9,3630.8,2.75421394]
[1753352416546,0.042,3630.9,3630.8,8.22101394]
[1753352416772,0.042,3630.9,3630.8,8.35861394]
[1753352416976,0.042,3630.9,3630.8,10.01725594]
[1753352418169,0.042,3630.9,3630.8,15.49076256]
[1753352418372,0.042,3630.9,3630.8,5.62325594]
[1753352418573,0.042,3630.9,3630.8,10.01625594]
[1753352420186,0.042,3630.9,3630.8,5.62325594]
[1753352420560,0.042,3630.9,3630.8,8.35661394]
[1753352421788,0.042,3630.9,3630.8,0.1376]
[1753352422292,0.042,3630.9,3630.8,4.5296]
[1753352422470,0.042,3630.9,3630.8,7.28381394]
[1753352423285,0.042,3630.9,3630.8,7.28281394]
[1753352426757,0.042,3630.9,3630.8,0.1376]
[1753352426964,0.042,3630.9,3630.8,4.5276]
[1753352427158,0.042,3630.9,3630.8,0.1376]
[1753352427360,4.0149,3630.8,3630.4,2.75450878]
[1753352427578,1.0149,3630.8,3630.7,0.1376]
[1753352427782,1.0149,3630.8,3630.7,4.5276]
[1753352428767,1.0149,3630.8,3630.7,0.1376]
[1753352428962,1.0149,3630.8,3630.7,4.5266]
[1753352431066,1.01588377,3630.8,3630.7,4.5266]
[1753352433372,1.01588377,3630.8,3630.7,0.1376]
[1753352434506,3.77009771,3630.8,3630.7,0.1376]
[1753352434702,1.01588377,3630.8,3630.7,0.1376]
[1753352437225,3.77009771,3630.8,3630.7,0.1376]
[1753352437505,6.77009771,3630.8,3630.7,0.1376]
[1753352437722,2.75439977,3630.6,3630.4,4.387]
[1753352437874,2.75444153,3630.5,3630.4,0.1376]
[1753352438196,5.75466916,3630.2,3630.1,0.001]
[1753352438512,5.89226916,3630.2,3630.1,0.001]
[1753352439684,6.98736916,3630.2,3630.1,0.001]
[1753352439888,7.58039583,3630.2,3630.1,0.001]
[1753352441310,11.96539583,3630.2,3630.1,0.001]
[1753352442091,11.9663796,3630.2,3630.1,0.001]
[1753352442297,11.37335293,3630.2,3630.1,0.001]
[1753352443698,3.98835293,3630.2,3630.1,0.001]
[1753352444405,9.49629291,3630.2,3630.1,0.001]
[1753352444604,12.46185955,3630.2,3630.1,0.001]
[1753352446122,13.052161,3630.2,3630.1,0.001]
[1753352450494,13.05314477,3630.2,3630.1,0.001]
[1753352451212,17.43614477,3630.2,3630.1,0.001]
[1753352461141,17.43741962,3630.2,3630.1,0.001]
[1753352463132,17.43941962,3630.2,3630.1,0.001]
[1753352463436,19.39913591,3630.2,3630.1,0.001]
[1753352463640,18.65843582,3630.2,3630.1,0.001]
[1753352464044,18.65843582,3630.2,3630.1,1e-08]
[1753352464242,18.2469173,3630.2,3630.1,1e-08]
[1753352464414,18.65891359,3630.2,3630.1,1e-08]
[1753352465352,3.76373192,3628.8,3628.7,0.001]
[1753352465515,11.86277856,3628.8,3628.7,0.001]
[1753352465712,10.27033192,3628.8,3628.7,0.001]
[1753352465940,5.89333192,3628.8,3628.7,0.001]
[1753352466455,10.27033192,3628.8,3628.7,0.001]
[1753352467149,5.89333192,3628.8,3628.7,0.001]
[1753352467448,10.27033192,3628.8,3628.7,0.001]
[1753352467626,5.89333192,3628.8,3628.7,0.001]
[1753352467822,7.5136,3628.8,3628.7,0.001]
[1753352468025,10.26933192,3628.8,3628.7,0.001]
[1753352468961,7.970436,3628.8,3628.7,0.001]
[1753352469148,10.72616792,3628.8,3628.7,0.001]
[1753352469921,10.72715169,3628.8,3628.7,0.001]
[1753352470132,10.86475169,3628.8,3628.7,0.001]
[1753352470335,10.86475169,3628.8,3628.1,1.1311]
[1753352470336,2.75593379,3628.6,3628.1,0.04]
[1753352470535,11.22969426,3628.2,3628.1,0.04]
[1753352470741,16.33773026,3628.2,3628.1,0.04]
[1753352471065,11.96173026,3628.2,3628.1,0.04]
[1753352471219,16.33871403,3628.2,3628.1,0.04]
[1753352471419,15.74427803,3628.2,3628.1,0.04]
[1753352471621,16.29427803,3628.2,3628.1,0.04]
[1753352471924,16.88730047,3628.2,3628.1,0.04]
[1753352472944,12.51130047,3628.2,3628.1,0.04]
[1753352473149,5.89477141,3628.2,3628.1,0.04]
[1753352473463,10.26977141,3628.2,3628.1,0.04]
[1753352474153,5.89477141,3628.2,3628.1,0.04]
[1753352474361,10.26977141,3628.2,3628.1,0.04]
[1753352474857,5.89477141,3628.2,3628.1,0.04]
[1753352475048,10.26977141,3628.2,3628.1,0.04]
[1753352475222,7.51358377,3628.2,3628.1,0.04]
[1753352476060,10.26977141,3628.2,3628.1,0.04]
[1753352476238,7.9683363,3628.2,3628.1,0.04]
[1753352476564,7.37598377,3628.2,3628.1,0.04]
[1753352477428,7.37498377,3628.2,3628.1,0.04]
[1753352480225,7.37398377,3628.2,3628.1,0.04]
[1753352485477,4.37398377,3628.2,3628.1,0.04]
[1753352485686,4.37398377,3628.2,3628.1,0.041]
[1753352486573,4.37198377,3628.2,3628.1,0.041]
[1753352487172,0.00098377,3628.2,3628.1,0.041]
[1753352487378,4.37198377,3628.2,3628.1,0.041]
[1753352489261,4.37098377,3628.2,3628.1,0.041]
[1753352489737,7.12717141,3628.2,3628.1,0.041]
[1753352490140,0.00098377,3628.2,3628.1,0.041]
[1753352490344,7.12717141,3628.2,3628.1,0.041]
[1753352491064,4.37098377,3628.2,3628.1,0.041]
[1753352491277,16.70563037,3628.2,3628.1,0.041]
[1753352491588,17.95104124,3628.2,3628.1,0.041]
[1753352492171,13.58104124,3628.2,3628.1,0.041]
[1753352492369,17.95004124,3628.2,3628.1,0.041]
[1753352492574,2.7567955,3627.4,3627.0,1.0747]
[1753352492737,4.5066,3627.4,3627.0,1.0747]
[1753352493075,7.2633955,3627.4,3627.0,1.0747]
[1753352493639,4.5066,3627.4,3627.0,1.0747]
[1753352494138,0.1376,3627.4,3627.0,1.0747]
[1753352494364,4.5066,3627.4,3627.0,1.0747]
[1753352495192,2.8943955,3627.4,3627.0,1.0747]
[1753352495403,7.2623955,3627.4,3627.0,1.0747]
[1753352495622,4.5056,3627.4,3627.0,1.0747]
[1753352495969,4.5056,3627.4,3627.0,3.83175326]
[1753352496169,0.1376,3627.4,3627.1,2.79701621]
[1753352496369,4.5056,3627.4,3627.1,2.79701621]
[1753352496669,4.5056,3627.4,3627.2,2.75688945]
[1753352496670,4.368,3627.4,3627.2,2.75688945]
[1753352496983,4.368,3627.4,3627.2,2.89448945]
[1753352497203,0.1376,3627.7,3627.2,2.89448945]
[1753352497502,4.367,3627.6,3627.2,0.1376]
[1753352497679,7.12366776,3627.6,3627.2,0.1376]
[1753352498001,2.75672449,3627.5,3627.2,0.1376]
[1753352498198,4.367,3627.4,3627.1,0.04]
[1753352498407,4.5046,3627.4,3627.1,0.04]
[1753352498571,2.8943955,3627.4,3627.1,0.04]
[1753352498764,7.2613955,3627.4,3627.1,0.04]
[1753352500169,2.8943955,3627.4,3627.1,0.04]
[1753352500370,7.2603955,3627.4,3627.1,0.04]
[1753352500582,2.8943955,3627.4,3627.1,0.04]
[1753352500778,4.5036,3627.4,3627.1,0.04]
[1753352500984,7.2603955,3627.4,3627.1,0.04]
[1753352501184,2.8943955,3627.4,3627.1,0.04]
[1753352501404,7.2603955,3627.4,3627.1,0.04]
[1753352502201,2.8943955,3627.4,3627.1,0.04]
[1753352502515,7.2603955,3627.4,3627.1,0.04]
[1753352502983,7.26137927,3627.4,3627.1,0.04]
[1753352503183,2.89537927,3627.4,3627.1,0.04]
[1753352503400,7.26037927,3627.4,3627.1,0.04]
[1753352505592,2.89537927,3627.4,3627.1,0.04]
[1753352505893,7.25937927,3627.4,3627.1,0.04]
[1753352506077,2.89537927,3627.4,3627.1,0.04]
[1753352506410,7.25937927,3627.4,3627.1,0.04]
[1753352507418,8.25047927,3627.4,3627.1,0.04]
[1753352508177,6.88647927,3627.4,3627.1,0.04]
[1753352508414,11.80047927,3627.4,3627.1,0.04]
[1753352508577,12.3926888,3627.4,3627.1,0.04]
[1753352510606,7.4796888,3627.4,3627.1,0.04]
[1753352510790,17.31619542,3627.4,3627.1,0.04]
[1753352511188,12.95319542,3627.4,3627.1,0.04]
[1753352511390,17.31619542,3627.4,3627.1,0.04]
[1753352511587,14.24505871,3627.4,3627.3,1e-08]
[1753352511816,18.60805871,3627.4,3627.3,1e-08]
[1753352512310,1.0329,3627.3,3625.2,1.0719]
[1753352512512,1.0329,3627.3,3624.1,0.04]
[1753352512513,3.0,3627.0,3625.8,1.0719]
[1753352512816,2.75702351,3627.1,3625.8,1.0719]
[1753352512817,2.75748809,3626.5,3625.8,1.0719]
[1753352513005,4.362,3626.4,3625.9,0.38299303]
[1753352513313,7.11961825,3626.4,3625.9,0.38299303]
[1753352513514,4.362,3626.3,3625.9,3.14092194]
[1753352513814,3.0,3627.1,3625.9,0.38299303]
[1753352514051,2.75726794,3626.8,3626.0,3.76274985]
[1753352514314,4.362,3626.7,3626.0,1.0049]
[1753352514484,2.75753057,3626.5,3626.0,1.0049]
[1753352514683,2.75757539,3626.4,3626.0,1.0049]
[1753352514882,4.362,3626.5,3626.0,1.0049]
[1753352515309,7.11950384,3626.5,3626.0,1.0049]
[1753352515515,2.75759038,3626.4,3626.0,1.0049]
[1753352515812,2.75792504,3626.0,3625.8,0.9902]
[1753352516016,7.11947622,3626.6,3625.8,0.9902]
[1753352516200,7.11947622,3626.6,3625.8,4.12304483]
[1753352516406,4.362,3626.6,3625.9,2.75787256]
[1753352516714,4.362,3626.6,3626.0,1.0405]
[1753352517018,0.00098377,3626.5,3626.0,1.0405]
[1753352518226,2.75761068,3626.4,3626.0,1.0405]
[1753352518582,0.00098377,3626.3,3626.0,1.0405]
[1753352518783,2.75862577,3626.3,3626.0,1.0405]
[1753352519084,0.00098377,3626.3,3626.0,1.0405]
[1753352519494,2.75862651,3626.3,3625.8,1.0538]
[1753352519698,2.75771014,3626.2,3625.8,1.0538]
[1753352519898,2.75864029,3626.3,3625.8,1.0538]
[1753352520186,5.75793596,3625.9,3625.8,0.001]
[1753352520517,11.11303596,3625.9,3625.8,0.001]
[1753352520882,11.66303596,3625.9,3625.8,0.001]
[1753352521083,0.0881,3625.2,3624.1,0.04]
[1753352521291,5.47350662,3624.4,3624.1,0.04]
[1753352521489,4.362,3624.3,3624.1,0.04]
[1753352521685,3.0,3624.9,3624.1,0.04]
[1753352521894,5.56160662,3625.0,3624.4,2.75907657]
[1753352522094,4.362,3625.1,3624.2,1.0708]
[1753352522326,3.0,3625.2,3624.8,0.1376]
[1753352522486,0.0344818,3625.1,3624.8,0.1376]
[1753352522819,3.0,3624.8,3624.1,0.04]
[1753352523014,0.1376,3624.3,3624.1,0.04]
[1753352523223,3.1376,3624.4,3624.1,1.1108]
[1753352523395,0.1376,3624.4,3624.1,1.1108]